bitfinex/quotes_SOLUSD_20240626
["timestamp","ask_amount","ask_price","bid_price","bid_amount"]
[1719411099318,7.1816,139.25,139.2,7.1837]
[1719411099517,16.0745,139.26,139.2,7.1837]
[1719411099518,7.1819,139.24,139.2,7.1837]
[1719411099736,7.1824,139.23,139.19,25.1443]
[1719411100036,7.1824,139.23,139.19,17.96]
[1719411100421,7.182,139.24,139.19,17.96]
[1719411100624,7.3513,139.25,139.2,7.1834]
[1719411100820,16.0745,139.26,139.21,17.9579]
[1719411101545,16.0745,139.26,139.22,7.1826]
[1719411101722,16.0745,139.26,139.23,7.1822]
[1719411101911,16.0745,139.26,139.21,17.9579]
[1719411102117,16.0745,139.26,139.23,7.182]
[1719411102736,23.2553,139.26,139.22,7.1826]
[1719411102946,23.2553,139.26,139.21,25.141]
[1719411103240,7.1804,139.27,139.22,7.1824]
[1719411103431,15.7948,139.3,139.2,35.9184]
[1719411103638,15.7948,139.3,139.26,7.1807]
[1719411104528,22.9735,139.3,139.26,7.1807]
[1719411104926,22.9735,139.3,139.25,7.1811]
[1719411105955,0.17,139.29,139.23,7.1823]
[1719411106241,7.1794,139.29,139.25,7.1811]
[1719411106443,22.9737,139.3,139.25,7.1811]
[1719411106752,7.1793,139.29,139.24,7.1816]
[1719411107625,7.1797,139.28,139.24,7.1816]
[1719411108125,7.1797,139.28,139.23,25.1379]
[1719411108332,7.1797,139.28,139.24,7.1817]
[1719411108534,7.1794,139.29,139.24,7.1817]
[1719411109951,7.18,139.28,139.23,25.1378]
[1719411110519,33.7422,139.3,139.22,7.1826]
[1719411110726,6.7773,139.29,139.22,7.1826]
[1719411111449,7.1808,139.26,139.22,7.1826]
[1719411112047,7.1808,139.26,139.21,17.9584]
[1719411112048,7.1808,139.26,139.21,25.1415]
[1719411113147,7.1808,139.26,139.22,7.1827]
[1719411113846,7.1795,139.29,139.24,7.1815]
[1719411114027,7.1798,139.28,139.24,7.1815]
[1719411114530,7.1795,139.29,139.24,7.1815]
[1719411114736,22.9735,139.3,139.25,17.9532]
[1719411114928,22.9735,139.3,139.25,25.1343]
[1719411115538,16.3573,139.34,139.28,17.9487]
[1719411115839,16.3573,139.34,139.25,17.9525]
[1719411116055,16.3573,139.34,139.27,7.1802]
[1719411116222,16.3573,139.34,139.28,7.1796]
[1719411116425,7.178,139.32,139.27,25.1308]
[1719411116743,7.1784,139.31,139.27,17.9507]
[1719411116957,16.3573,139.34,139.24,76.6406]
[1719411117129,7.1789,139.3,139.26,7.1807]
[1719411117324,16.3573,139.34,139.22,7.1825]
[1719411117325,7.1806,139.27,139.22,7.1825]
[1719411117653,7.1798,139.28,139.23,17.9555]
[1719411117844,7.5194,139.29,139.24,7.1817]
[1719411118025,17.9462,139.31,139.26,7.1805]
[1719411118026,7.1784,139.31,139.26,7.1805]
[1719411118530,7.3478,139.32,139.27,7.1801]
[1719411118726,7.3477,139.32,139.27,25.1306]
[1719411118932,7.3477,139.32,139.28,7.1795]
[1719411119150,7.1783,139.31,139.27,25.1306]
[1719411119452,7.1783,139.31,139.27,17.9505]
[1719411120359,7.1783,139.31,139.26,7.1806]
[1719411120844,7.1783,139.31,139.26,25.1323]
[1719411121153,7.1784,139.31,139.26,25.1323]
[1719411121738,17.9433,139.33,139.25,7.1812]
[1719411121938,7.1789,139.3,139.25,7.1812]
[1719411122143,7.1789,139.3,139.26,1.43587985]
[1719411122338,7.1783,139.31,139.26,7.1807]
[1719411123157,7.1794,139.29,139.25,25.1344]
[1719411123356,7.1794,139.29,139.25,17.9532]
[1719411123752,18.1155,139.32,139.23,7.1822]
[1719411123929,7.18,139.28,139.24,7.1817]
[1719411124963,7.1789,139.3,139.25,7.1813]
[1719411125135,7.1789,139.3,139.25,25.1344]
[1719411125337,7.1793,139.29,139.25,25.1344]
[1719411126141,7.1793,139.29,139.25,17.9531]
[1719411126341,7.1797,139.28,139.23,7.1821]
[1719411127059,0.17,139.31,139.22,17.9561]
[1719411127368,0.17,139.27,139.21,7.183]
[1719411127543,7.1811,139.26,139.21,7.183]
[1719411128252,7.1814,139.25,139.2,25.1433]
[1719411128634,7.3505,139.27,139.22,7.1825]
[1719411128832,7.3504,139.27,139.22,7.1825]
[1719411129032,15.6128,139.28,139.23,17.9558]
[1719411129386,7.1812,139.26,139.22,7.1826]
[1719411129538,7.1812,139.26,139.21,7.1831]
[1719411130045,7.1813,139.25,139.21,7.1831]
[1719411130240,7.1819,139.24,139.2,25.1424]
[1719411130656,7.1825,139.23,139.18,7.1845]
[1719411131868,7.1825,139.23,139.19,7.1843]
[1719411132166,7.182,139.24,139.19,25.1453]
[1719411132353,7.3524,139.23,139.19,25.1453]
[1719411132656,16.2609,139.31,139.21,35.9162]
[1719411132871,16.2609,139.31,139.26,17.9518]
[1719411133163,29.4611,139.34,139.29,7.179]
[1719411133344,29.4611,139.34,139.28,25.1288]
[1719411133548,7.1774,139.33,139.28,25.1288]
[1719411134336,7.1792,139.3,139.25,25.1334]
[1719411134736,29.461,139.34,139.28,25.1281]
[1719411135044,7.1778,139.32,139.28,17.9489]
[1719411135767,7.1773,139.33,139.28,25.1286]
[1719411135946,7.1777,139.32,139.28,25.1286]
[1719411136364,7.1777,139.32,139.28,17.9489]
[1719411137161,7.3473,139.33,139.28,25.1286]
[1719411137957,7.1777,139.32,139.28,25.1286]
[1719411138148,7.1777,139.32,139.27,7.1802]
[1719411139558,7.1784,139.31,139.26,7.1807]
[1719411139760,7.3484,139.31,139.26,7.1807]
[1719411139942,0.17,139.3,139.26,7.1807]
[1719411140143,0.34,139.3,139.26,7.1807]
[1719411140579,7.1776,139.33,139.27,17.9505]
[1719411140864,0.17,139.32,139.28,7.1794]
[1719411141369,22.4542,139.34,139.29,17.9476]
[1719411141665,16.2609,139.34,139.32,7.1776]
[1719411141971,16.2609,139.34,139.31,25.1233]
[1719411142549,16.2609,139.34,139.31,17.9452]
[1719411143068,16.2609,139.34,139.26,52.07]
[1719411143365,13.5026,139.37,139.29,35.896]
[1719411143577,13.5026,139.37,139.32,25.121]
[1719411144066,7.1756,139.36,139.32,17.9437]
[1719411144241,7.1756,139.36,139.31,7.178]
[1719411146046,6.6675,139.37,139.32,7.1776]
[1719411146586,13.8427,139.37,139.32,7.1776]
[1719411147265,0.34,139.37,139.33,17.9427]
[1719411147475,271.3051,139.38,139.34,7.1766]
[1719411147673,278.4798,139.38,139.33,25.1197]
[1719411148257,7.1751,139.37,139.33,25.1197]
[1719411148771,278.4798,139.38,139.33,25.1197]
[1719411150180,271.3051,139.38,139.3,17.9466]
[1719411150375,7.1757,139.36,139.31,7.1781]
[1719411151282,7.5152,139.37,139.32,7.1776]
[1719411153081,0.34,139.37,139.3,17.9466]
[1719411153288,7.1766,139.35,139.3,17.9466]
[1719411153986,7.1766,139.35,139.31,7.1781]
[1719411154168,0.34,139.37,139.32,7.1772]
[1719411154381,271.3051,139.38,139.32,7.1772]
[1719411154382,278.4801,139.38,139.33,7.1771]
[1719411154692,7.1752,139.37,139.32,25.1217]
[1719411155074,7.1757,139.36,139.32,25.1217]
[1719411155276,7.1753,139.37,139.32,25.1217]
[1719411155788,271.3051,139.38,139.34,17.9416]
[1719411156165,271.3051,139.38,139.34,25.1182]
[1719411156365,278.4798,139.38,139.34,25.1182]
[1719411156674,278.4798,139.38,139.34,17.9416]
[1719411157468,7.1751,139.37,139.34,17.9416]
[1719411158176,7.1751,139.37,139.33,7.177]
[1719411158597,271.3051,139.38,139.33,7.177]
[1719411158765,271.3051,139.38,139.34,7.1764]
[1719411158966,278.4797,139.38,139.33,25.1198]
[1719411159411,7.1752,139.37,139.33,25.1198]
[1719411159590,7.1752,139.37,139.33,17.9429]
[1719411160174,271.3051,139.38,139.33,17.9429]
[1719411160384,271.3051,139.38,139.35,17.9397]
[1719411160586,255.5,139.38,139.36,7.1755]
[1719411160778,15.5683,139.43,139.37,17.9367]
[1719411161294,15.5683,139.43,139.39,25.1085]
[1719411161673,22.7404,139.43,139.38,7.1745]
[1719411162182,15.5683,139.43,139.39,17.9346]
[1719411162492,15.5683,139.43,139.39,25.1086]
[1719411162877,22.7404,139.43,139.39,17.9346]
[1719411163883,22.7404,139.43,139.38,7.1745]
[1719411164774,22.7404,139.43,139.36,17.9385]
[1719411166093,22.7404,139.43,139.4,7.1735]
[1719411166094,15.5683,139.43,139.4,7.1735]
[1719411166595,15.5683,139.43,139.38,17.9362]
[1719411166797,22.7404,139.43,139.38,25.1103]
[1719411166984,22.7404,139.43,139.39,7.1739]
[1719411166985,15.5683,139.43,139.39,7.1739]
[1719411168593,22.7404,139.43,139.38,25.1106]
[1719411168796,22.7404,139.43,139.39,7.1741]
[1719411168993,15.5683,139.43,139.4,7.1734]
[1719411169301,7.1711,139.45,139.4,7.1734]
[1719411170193,7.1711,139.45,139.41,7.173]
[1719411170501,7.1711,139.45,139.4,25.1072]
[1719411170721,7.1742,139.39,139.34,7.1765]
[1719411171018,7.1747,139.38,139.33,7.1767]
[1719411171202,7.3437,139.4,139.35,7.1759]
[1719411171396,17.9316,139.42,139.31,6.1017]
[1719411171397,22.6515,139.43,139.37,17.9376]
[1719411171601,0.34,139.42,139.37,1.43489934]
[1719411171804,0.34,139.42,139.36,17.9389]
[1719411172315,7.1734,139.41,139.36,25.1145]
[1719411172521,7.1734,139.41,139.37,7.1751]
[1719411172709,7.1734,139.41,139.36,25.1144]
[1719411173112,7.1731,139.41,139.37,7.1749]
[1719411173293,7.1736,139.4,139.36,17.9389]
[1719411173611,7.1742,139.39,139.34,7.1764]
[1719411173833,7.345,139.38,139.33,25.1188]
[1719411174114,0.17,139.4,139.33,25.1188]
[1719411174115,7.1741,139.39,139.35,7.1761]
[1719411174322,7.1741,139.39,139.34,7.1764]
[1719411174523,7.1741,139.39,139.35,7.176]
[1719411174686,7.1741,139.39,139.34,7.1764]
[1719411174687,7.1742,139.39,139.34,7.1764]
[1719411174882,7.1742,139.39,139.33,17.9418]
[1719411174883,7.1747,139.38,139.33,25.1188]
[1719411175088,7.1756,139.36,139.3,17.9458]
[1719411175313,7.1765,139.35,139.3,25.1244]
[1719411175516,16.5609,139.36,139.32,7.1772]
[1719411175697,16.5609,139.36,139.33,1.43520053]
[1719411175896,16.5609,139.36,139.32,7.1775]
[1719411176110,7.1746,139.38,139.33,25.1198]
[1719411176416,7.1746,139.38,139.33,17.9428]
[1719411176595,7.1746,139.38,139.33,25.1196]
[1719411177113,7.1752,139.37,139.33,17.9428]
[1719411177286,7.1757,139.36,139.3,17.9457]
[1719411177487,0.17,139.38,139.34,7.1763]
[1719411177701,22.3959,139.39,139.35,7.176]
[1719411177903,15.2218,139.39,139.35,7.176]
[1719411178099,15.2218,139.39,139.36,7.1755]
[1719411178397,15.2218,139.39,139.35,7.1759]
[1719411178598,15.2218,139.39,139.36,7.1756]
[1719411179118,15.2218,139.39,139.35,7.176]
[1719411179326,15.2218,139.39,139.36,7.1756]
[1719411179617,21.8082,139.43,139.37,7.175]
[1719411179915,15.7532,139.43,139.39,7.174]
[1719411180414,6.5112,139.42,139.3,52.07]
[1719411180634,13.684,139.42,139.36,17.9388]
[1719411180934,7.1713,139.45,139.38,7.1741]
[1719411181134,22.9235,139.47,139.4,7.1734]
[1719411181422,7.1705,139.46,139.41,1.43421724]
[1719411181717,15.7532,139.47,139.42,7.1721]
[1719411181959,0.95196401,139.5,139.44,7.1714]
[1719411182128,7.169,139.49,139.43,25.1017]
[1719411182312,7.169,139.49,139.44,1.43387475]
[1719411182619,7.169,139.49,139.44,7.1714]
[1719411182914,0.95196401,139.5,139.46,7.1703]
[1719411183118,0.95196401,139.5,139.45,17.9273]
[1719411183299,8.12046401,139.5,139.45,25.0979]
[1719411183618,8.12046401,139.5,139.45,25.0983]
[1719411183917,0.95196401,139.5,139.46,7.1703]
[1719411184109,0.95196401,139.5,139.47,17.9242]
[1719411184421,0.95196401,139.5,139.49,7.1689]
[1719411184895,0.95196401,139.5,139.48,0.17]
[1719411185095,0.95196401,139.5,139.48,0.34]
[1719411185491,0.95196401,139.5,139.48,7.5093]
[1719411186114,0.95196401,139.5,139.48,0.34]
[1719411186308,0.95196401,139.5,139.46,7.1703]
[1719411186510,0.95196401,139.5,139.47,7.1699]
[1719411186944,8.12086401,139.5,139.45,7.5106]
[1719411187118,7.169,139.49,139.44,7.1712]
[1719411187432,7.1698,139.48,139.43,47.0432]
[1719411187623,7.17,139.47,139.43,31.4979]
[1719411187801,7.1696,139.48,139.43,13.5685]
[1719411188216,7.169,139.49,139.44,7.1713]
[1719411188423,0.95196401,139.5,139.43,6.3965]
[1719411188614,7.1695,139.48,139.43,13.5684]
[1719411188815,0.95196401,139.5,139.43,6.3965]
[1719411189123,0.95196401,139.5,139.43,24.3262]
[1719411189316,7.17,139.47,139.43,6.3965]
[1719411189507,0.95196401,139.5,139.4,17.9333]
[1719411189508,18.87386401,139.5,139.4,17.9333]
[1719411189699,18.87386401,139.5,139.41,1.43400874]
[1719411190004,7.1701,139.47,139.42,8.60620386]
[1719411190202,7.1701,139.47,139.42,7.1722]
[1719411190505,0.8516993,139.5,139.43,7.1718]
[1719411190815,7.1704,139.47,139.42,25.1029]
[1719411191021,7.1705,139.46,139.42,25.1029]
[1719411191425,7.1699,139.48,139.42,17.9305]
[1719411191624,7.1699,139.48,139.43,7.1719]
[1719411191925,7.17,139.47,139.42,25.1029]
[1719411192127,7.17,139.47,139.43,7.172]
[1719411193018,17.923,139.49,139.39,40.3266]
[1719411193224,7.1711,139.45,139.41,7.173]
[1719411193426,7.1711,139.45,139.39,40.3266]
[1719411193628,7.1706,139.46,139.41,17.9324]
[1719411193831,7.1706,139.46,139.41,25.1053]
[1719411194243,7.1701,139.47,139.42,7.1724]
[1719411194421,7.1706,139.46,139.42,7.1724]
[1719411194918,7.1701,139.47,139.42,7.1724]
[1719411195127,7.1696,139.48,139.43,7.172]
[1719411195315,7.1701,139.47,139.42,7.1723]
[1719411195516,7.1701,139.47,139.43,7.172]
[1719411195716,7.1705,139.46,139.42,7.1724]
[1719411195918,24.9833993,139.5,139.41,25.1054]
[1719411196117,7.1706,139.46,139.41,25.1054]
[1719411196330,7.1706,139.46,139.42,7.1725]
[1719411196533,7.1706,139.46,139.41,25.1052]
[1719411196725,7.1706,139.46,139.42,7.1725]
[1719411197349,24.9833993,139.5,139.41,17.9324]
[1719411197541,24.9833993,139.5,139.41,25.1054]
[1719411197737,7.1706,139.46,139.41,25.1054]
[1719411197924,7.1701,139.47,139.41,17.9324]
[1719411198127,7.1696,139.48,139.43,7.1719]
[1719411198738,7.1696,139.48,139.44,1.43386742]
[1719411198940,7.1691,139.49,139.44,7.1713]
[1719411199245,7.1691,139.49,139.45,1.43374482]
[1719411199628,7.1695,139.48,139.44,7.1713]
[1719411200242,7.1695,139.48,139.43,25.1016]
[1719411200628,7.1695,139.48,139.44,7.1713]
[1719411200827,7.1701,139.47,139.43,17.9298]
[1719411201237,7.1706,139.46,139.42,7.172]
[1719411201436,7.1702,139.47,139.42,7.172]
[1719411201950,7.1702,139.47,139.4,17.9328]
[1719411201951,7.1706,139.46,139.41,7.1729]
[1719411202127,7.1713,139.45,139.4,17.9328]
[1719411202528,7.1713,139.45,139.4,25.1061]
[1719411202828,17.923,139.49,139.42,7.1725]
[1719411203026,7.1703,139.47,139.42,7.1725]
[1719411203242,7.1708,139.46,139.41,7.1729]
[1719411203419,0.8516993,139.5,139.42,19.36540981]
[1719411203620,7.1708,139.46,139.42,17.9313]
[1719411203843,7.1701,139.47,139.42,17.9313]
[1719411204022,7.1701,139.47,139.42,25.1035]
[1719411205724,7.1701,139.47,139.42,17.9313]
[1719411206131,7.1701,139.47,139.42,25.1035]
[1719411206640,7.1705,139.46,139.42,17.9313]
[1719411207144,7.1701,139.47,139.42,17.9313]
[1719411207333,7.1701,139.47,139.42,25.1038]
[1719411207522,0.8516993,139.5,139.43,1.43403845]
[1719411208143,0.8516993,139.5,139.44,7.1711]
[1719411208321,0.8516993,139.5,139.48,17.923]
[1719411208525,0.8516993,139.5,139.49,7.1689]
[1719411210036,0.8516993,139.5,139.48,25.0923]
[1719411210237,0.8516993,139.5,139.49,7.1689]
[1719411210825,0.8516993,139.5,139.4,50.9588]
[1719411211148,0.8516993,139.5,139.44,7.171]
[1719411211327,0.8516993,139.5,139.45,1.43379294]
[1719411211533,0.8516993,139.5,139.46,7.1704]
[1719411213051,0.8516993,139.5,139.44,17.9286]
[1719411213052,8.0201993,139.5,139.45,7.1708]
[1719411213247,7.1689,139.49,139.44,25.1]
[1719411213549,8.0201993,139.5,139.45,8.60465124]
[1719411213754,0.8516993,139.5,139.46,1.43380552]
[1719411213930,0.8516993,139.5,139.46,7.1701]
[1719411214248,0.8516993,139.5,139.47,7.1699]
[1719411215445,0.8516993,139.5,139.48,7.1694]
[1719411216037,0.8516993,139.5,139.49,8.60238899]
[1719411216246,0.8516993,139.5,139.49,7.1689]
[1719411216758,0.8516993,139.5,139.48,25.0926]
[1719411216958,0.8516993,139.5,139.49,1.43349304]
[1719411217128,0.8516993,139.5,139.48,25.0926]
[1719411217329,0.8516993,139.5,139.49,7.1689]
[1719411219444,0.8516993,139.5,139.48,25.0926]
[1719411220154,0.8516993,139.5,139.49,1.43355534]
[1719411221066,0.8516993,139.5,139.45,25.0979]
[1719411221367,0.8516993,139.5,139.46,7.1704]
[1719411222061,0.8516993,139.5,139.47,17.9248]
[1719411222356,0.8516993,139.5,139.49,7.1689]
[1719411223851,0.8516993,139.5,139.48,7.1693]
[1719411224731,0.8516993,139.5,139.46,7.1702]
[1719411225069,0.8516993,139.5,139.46,17.9262]
[1719411225353,0.8516993,139.5,139.49,7.1689]
[1719411226166,0.8516993,139.5,139.48,25.0927]
[1719411226537,0.8516993,139.5,139.49,7.1689]
[1719411227463,0.8516993,139.5,139.48,17.9235]
[1719411227679,0.8516993,139.5,139.48,25.0928]
[1719411227856,0.8516993,139.5,139.46,35.8513]
[1719411227857,0.8516993,139.5,139.46,7.1703]
[1719411228030,0.8516993,139.5,139.45,25.098]
[1719411228234,0.8516993,139.5,139.45,17.927]
[1719411228443,24.1487993,139.5,139.45,17.927]
[1719411228643,16.9799993,139.5,139.45,25.0976]
[1719411229355,30.1749993,139.5,139.45,17.927]
[1719411229658,30.1749993,139.5,139.45,25.0979]
[1719411229964,23.0063993,139.5,139.47,7.1699]
[1719411230265,23.0063993,139.5,139.46,8.60426193]
[1719411230558,23.0063993,139.5,139.48,7.169]
[1719411230761,16.9799993,139.5,139.48,7.169]
[1719411230977,16.9799993,139.5,139.49,7.1689]
[1719411231137,0.8516993,139.5,139.49,7.1689]
[1719411241745,0.8516993,139.5,139.49,8.60213886]
[1719411241946,0.8516993,139.5,139.49,7.1689]
[1719411242146,0.8516993,139.5,139.49,8.60202108]
[1719411243548,0.8516993,139.5,139.49,7.1689]
[1719411244072,0.8516993,139.5,139.49,8.60194045]
[1719411245156,0.8516993,139.5,139.49,7.1689]
[1719411245359,0.8516993,139.5,139.49,7.3389]
[1719411245783,0.8516993,139.5,139.49,25.2613]
[1719411246193,0.8516993,139.5,139.49,25.4313]
[1719411247085,0.8516993,139.5,139.49,26.8642881]
[1719411247478,0.87824,139.55,139.49,26.8642881]
[1719411247479,0.87824,139.55,139.54,25.0824]
[1719411247995,0.87824,139.55,139.54,17.916]
[1719411248154,0.87824,139.55,139.54,25.0824]
[1719411250463,0.76825008,139.55,139.54,25.0824]
[1719411254762,0.76825008,139.55,139.54,7.1664]
[1719411256183,0.76825008,139.55,139.54,8.59949116]
[1719411256397,0.76825008,139.55,139.54,7.1664]
[1719411257089,0.76825008,139.55,139.53,25.0836]
[1719411257265,0.76825008,139.55,139.54,7.1664]
[1719411257461,0.76825008,139.55,139.53,17.9168]
[1719411257673,16.70185008,139.55,139.53,17.9168]
[1719411257869,16.70185008,139.55,139.5,25.089]
[1719411258082,23.86775008,139.55,139.5,25.0891]
[1719411258279,23.86775008,139.55,139.47,35.8495]
[1719411258280,16.70185008,139.55,139.52,25.0856]
[1719411258689,16.70185008,139.55,139.52,17.9183]
[1719411258887,16.70185008,139.55,139.49,17.9222]
[1719411259092,6.5095,139.54,139.49,25.091]
[1719411259395,6.5095,139.54,139.47,35.8495]
[1719411259396,7.3371,139.53,139.47,7.1699]
[1719411259685,7.3371,139.53,139.47,7.1696]
[1719411260186,7.1675,139.52,139.46,17.9254]
[1719411260388,0.17,139.53,139.48,7.1693]
[1719411260784,7.337,139.53,139.48,7.1693]
[1719411260969,0.17,139.52,139.47,7.1698]
[1719411261174,7.3375,139.52,139.47,7.1698]
[1719411261499,15.2046,139.5,139.46,25.0957]
[1719411261867,7.3389,139.49,139.43,7.45600906]
[1719411262067,6.2311,139.48,139.42,17.9302]
[1719411262275,6.2311,139.48,139.44,7.1711]
[1719411262576,6.2311,139.48,139.46,7.1704]
[1719411262771,6.2311,139.48,139.45,7.1708]
[1719411263195,6.2311,139.48,139.46,7.1704]
[1719411263372,6.2311,139.48,139.45,7.1709]
[1719411263569,6.2311,139.48,139.46,7.17]
[1719411263784,15.2046,139.5,139.46,17.9254]
[1719411264089,15.2046,139.5,139.46,25.0954]
[1719411264402,22.373,139.5,139.43,17.9292]
[1719411264687,15.2046,139.5,139.46,7.1704]
[1719411265068,15.2046,139.5,139.45,17.9272]
[1719411265381,15.2046,139.5,139.46,7.17]
[1719411265794,15.2046,139.5,139.45,25.098]
[1719411266093,15.2046,139.5,139.46,7.1703]
[1719411266398,22.373,139.5,139.45,25.0981]
[1719411266780,15.2046,139.5,139.39,7.46566449]
[1719411266982,7.1701,139.47,139.41,7.1727]
[1719411267187,0.17,139.46,139.42,7.1724]
[1719411267396,0.17,139.46,139.41,25.1051]
[1719411267397,7.5106,139.46,139.41,25.1051]
[1719411267900,7.1696,139.48,139.41,17.9322]
[1719411268073,0.34,139.47,139.43,7.1717]
[1719411268271,7.51,139.47,139.42,7.1725]
[1719411268483,7.51,139.47,139.41,17.9322]
[1719411268484,7.1709,139.46,139.41,17.9322]
[1719411268689,0.34,139.45,139.41,25.1049]
[1719411269002,0.34,139.45,139.41,17.9322]
[1719411269208,0.34,139.45,139.41,25.1049]
[1719411271003,7.1701,139.47,139.42,7.1723]
[1719411271187,0.34,139.46,139.42,7.1723]
[1719411271383,15.2046,139.5,139.44,7.1714]
[1719411271685,15.2046,139.5,139.43,17.9298]
[1719411271871,7.1696,139.48,139.43,17.9298]
[1719411272071,15.2046,139.5,139.43,17.9298]
[1719411272276,7.17,139.47,139.42,7.1721]
[1719411272575,7.1705,139.46,139.41,7.1729]
[1719411272896,7.3405,139.46,139.41,7.1729]
[1719411273080,0.17,139.46,139.4,17.9327]
[1719411273402,7.34,139.47,139.42,7.1725]
[1719411274495,0.17,139.46,139.43,7.1719]
[1719411274673,0.17,139.47,139.43,7.1719]
[1719411274995,0.17,139.47,139.42,17.9313]
[1719411275195,0.17,139.47,139.42,25.1034]
[1719411275503,0.17,139.47,139.43,7.1719]
[1719411275815,15.2046,139.5,139.41,35.8634]
[1719411275979,15.2046,139.5,139.39,51.91]
[1719411276188,15.2046,139.5,139.43,25.1007]
[1719411276407,7.1698,139.48,139.43,17.9291]
[1719411276712,7.1698,139.48,139.43,25.1009]
[1719411276907,7.1696,139.48,139.43,25.1009]
[1719411277288,0.34,139.47,139.43,25.1009]
[1719411277491,0.34,139.48,139.44,7.1713]
[1719411277702,0.17,139.47,139.45,7.171]
[1719411277901,0.34,139.49,139.45,7.171]
[1719411278413,0.34,139.49,139.44,7.1713]
[1719411278987,0.34,139.49,139.45,7.1709]
[1719411279285,0.17,139.49,139.45,7.1709]
[1719411279706,20.17,139.49,139.45,7.1709]
[1719411279891,27.339,139.49,139.44,7.1713]
[1719411280413,7.1694,139.48,139.43,25.1009]
[1719411280595,2.11016808,139.47,139.4,17.9327]
[1719411280916,7.3405,139.46,139.41,7.1728]
[1719411281215,7.1701,139.47,139.42,7.1725]
[1719411281385,0.17,139.46,139.42,7.1725]
[1719411282215,7.3406,139.46,139.41,7.173]
[1719411282519,0.17,139.46,139.42,7.1724]
[1719411282690,0.34,139.46,139.42,7.1724]
[1719411283719,0.34,139.46,139.42,25.1036]
[1719411284709,0.17,139.46,139.42,17.9312]
[1719411284895,15.2046,139.5,139.44,17.9287]
[1719411285101,15.2046,139.5,139.46,17.9262]
[1719411285308,15.2046,139.5,139.47,7.1696]
[1719411285604,15.2046,139.5,139.48,7.1693]
[1719411286114,15.2046,139.5,139.47,7.1698]
[1719411286912,15.2046,139.5,139.46,25.0965]
[1719411287211,22.373,139.5,139.46,17.9262]
[1719411287807,15.2046,139.5,139.46,25.0967]
[1719411288201,15.2046,139.5,139.47,7.1699]
[1719411288414,15.2046,139.5,139.48,17.9234]
[1719411288594,15.2046,139.5,139.49,7.1689]
[1719411288796,15.2046,139.5,139.48,17.9234]
[1719411288797,15.2046,139.5,139.48,25.0928]
[1719411289490,15.2046,139.5,139.48,17.9234]
[1719411289695,15.2046,139.5,139.47,7.1698]
[1719411289896,15.2046,139.5,139.45,25.0973]
[1719411290206,0.17,139.49,139.44,7.1712]
[1719411290415,7.5091,139.49,139.44,7.1712]
[1719411291290,0.34,139.49,139.44,25.0999]
[1719411291487,0.34,139.49,139.47,7.1699]
[1719411291714,0.17,139.49,139.46,17.9259]
[1719411291926,0.34,139.49,139.44,7.1713]
[1719411292219,0.34,139.49,139.45,17.9274]
[1719411292428,0.34,139.49,139.45,25.0979]
[1719411292592,0.34,139.49,139.46,7.1705]
[1719411292990,15.2046,139.5,139.47,7.1699]
[1719411293300,15.2046,139.5,139.49,7.1689]
[1719411293701,15.2046,139.5,139.48,7.1693]
[1719411294814,15.9664,139.54,139.46,15.67]
[1719411295122,0.76825008,139.55,139.47,0.17]
[1719411295321,0.76825008,139.55,139.52,17.9183]
[1719411296115,0.76825008,139.55,139.54,7.1664]
[1719411296324,0.76825008,139.55,139.53,7.1667]